[Event "*** Titled Tuesday Blitz"]
[Site "Chess.com"]
[Date "2021.03.02"]
[Round "3"]
[White "ama18"]
[Black "Mazanchenko_Dmitry"]
[Result "1-0"]
[WhiteElo "2481"]
[BlackElo "2093"]
[TimeControl "180+1"]
[EndTime "10:29:26 PST"]
[Termination "ama18 won by checkmate"]

1. e4 {[%clk 0:03:00.9]} 1... c5 {[%clk 0:02:59.3]} 2. Nf3 {[%clk 0:03:00.5]}
2... d6 {[%clk 0:02:58.6]} 3. d4 {[%clk 0:03:00.8]} 3... Nf6 {[%clk 0:02:57.9]}
4. Nc3 {[%clk 0:02:59.1]} 4... cxd4 {[%clk 0:02:57.7]} 5. Nxd4 {[%clk 0:03:00]}
5... Nc6 {[%clk 0:02:58.4]} 6. f3 {[%clk 0:02:59]} 6... e5 {[%clk 0:02:57.2]} 7.
Nb3 {[%clk 0:02:58.8]} 7... Be6 {[%clk 0:02:57.2]} 8. Be3 {[%clk 0:02:55.5]}
8... d5 {[%clk 0:02:57]} 9. exd5 {[%clk 0:02:56.4]} 9... Nxd5 {[%clk 0:02:57.5]}
10. Nxd5 {[%clk 0:02:56.4]} 10... Bxd5 {[%clk 0:02:55.8]} 11. Qd2 {[%clk
0:02:42.6]} 11... Be7 {[%clk 0:02:34.2]} 12. O-O-O {[%clk 0:02:39.4]} 12... Be6
{[%clk 0:02:32]} 13. Qxd8+ {[%clk 0:02:15.8]} 13... Rxd8 {[%clk 0:02:32.9]} 14.
Bb5 {[%clk 0:02:13.2]} 14... O-O {[%clk 0:02:06.6]} 15. Nc5 {[%clk 0:02:07.7]}
15... Bc8 {[%clk 0:02:02.5]} 16. a3 {[%clk 0:01:25.6]} 16... Nd4 {[%clk
0:01:58.5]} 17. Bxd4 {[%clk 0:01:18.3]} 17... exd4 {[%clk 0:01:59.4]} 18. Ne4
{[%clk 0:01:15.2]} 18... f5 {[%clk 0:01:55.1]} 19. Bc4+ {[%clk 0:01:14.7]} 19...
Kh8 {[%clk 0:01:54.5]} 20. Nf2 {[%clk 0:01:15]} 20... a6 {[%clk 0:01:50.9]} 21.
Rhe1 {[%clk 0:01:13.9]} 21... Bf6 {[%clk 0:01:50.4]} 22. Nd3 {[%clk 0:01:12.4]}
22... b5 {[%clk 0:01:49.1]} 23. Be6 {[%clk 0:01:11.9]} 23... Bb7 {[%clk
0:01:44.2]} 24. Kb1 {[%clk 0:01:07.5]} 24... g6 {[%clk 0:01:39.1]} 25. Nc5
{[%clk 0:01:05.3]} 25... Bc6 {[%clk 0:01:03.1]} 26. Nxa6 {[%clk 0:00:59.8]}
26... Rfe8 {[%clk 0:00:49.3]} 27. Nb4 {[%clk 0:00:55.7]} 27... Bb7 {[%clk
0:00:49.1]} 28. Bf7 {[%clk 0:00:54.3]} 28... Re7 {[%clk 0:00:46.2]} 29. Rxe7
{[%clk 0:00:50.3]} 29... Bxe7 {[%clk 0:00:47.1]} 30. Nd3 {[%clk 0:00:50.5]}
30... Kg7 {[%clk 0:00:45.6]} 31. Bb3 {[%clk 0:00:49.7]} 31... g5 {[%clk
0:00:42.2]} 32. Re1 {[%clk 0:00:49.2]} 32... Kf6 {[%clk 0:00:41.3]} 33. Re6+
{[%clk 0:00:47.9]} 33... Kf7 {[%clk 0:00:38.7]} 34. Rb6+ {[%clk 0:00:41.8]}
34... Bd5 {[%clk 0:00:38.3]} 35. Rxb5 {[%clk 0:00:40.8]} 35... Bxb3 {[%clk
0:00:36.9]} 36. Rxb3 {[%clk 0:00:41.7]} 36... Bd6 {[%clk 0:00:33.9]} 37. Rb7+
{[%clk 0:00:41.1]} 37... Kg6 {[%clk 0:00:32.4]} 38. h3 {[%clk 0:00:41.4]} 38...
h5 {[%clk 0:00:26.5]} 39. a4 {[%clk 0:00:41]} 39... Re8 {[%clk 0:00:20.4]} 40.
Rb6 {[%clk 0:00:40.2]} 40... Re2 {[%clk 0:00:15.5]} 41. Rxd6+ {[%clk 0:00:39.5]}
41... Kg7 {[%clk 0:00:16.4]} 42. g4 {[%clk 0:00:39.1]} 42... fxg4 {[%clk
0:00:14.2]} 43. fxg4 {[%clk 0:00:38.7]} 43... h4 {[%clk 0:00:15.1]} 44. Rxd4
{[%clk 0:00:35.3]} 44... Rh2 {[%clk 0:00:16]} 45. Rd7+ {[%clk 0:00:31.3]} 45...
Kf6 {[%clk 0:00:15.3]} 46. Rd6+ {[%clk 0:00:31.5]} 46... Ke7 {[%clk 0:00:14]}
47. Rg6 {[%clk 0:00:31.1]} 47... Rh1+ {[%clk 0:00:14.9]} 48. Ka2 {[%clk
0:00:30.9]} 48... Rxh3 {[%clk 0:00:15.7]} 49. Rxg5 {[%clk 0:00:31.3]} 49... Rg3
{[%clk 0:00:16]} 50. Rh5 {[%clk 0:00:29.8]} 50... h3 {[%clk 0:00:16.3]} 51. a5
{[%clk 0:00:29.5]} 51... Kd6 {[%clk 0:00:16.6]} 52. Rh6+ {[%clk 0:00:28.7]}
52... Kc7 {[%clk 0:00:16.4]} 53. a6 {[%clk 0:00:29]} 53... Kb8 {[%clk 0:00:16]}
54. b4 {[%clk 0:00:28.2]} 54... Ka7 {[%clk 0:00:15.5]} 55. b5 {[%clk 0:00:28.1]}
55... Rg2 {[%clk 0:00:14.7]} 56. Rxh3 {[%clk 0:00:25.5]} 56... Rxc2+ {[%clk
0:00:15.1]} 57. Kb3 {[%clk 0:00:25.9]} 57... Rg2 {[%clk 0:00:16]} 58. Rh7+
{[%clk 0:00:25.5]} 58... Kb6 {[%clk 0:00:15.4]} 59. Rb7+ {[%clk 0:00:24.5]}
59... Ka5 {[%clk 0:00:16.3]} 60. a7 {[%clk 0:00:20.5]} 60... Rb2+ {[%clk
0:00:13.5]} 61. Kxb2 {[%clk 0:00:20.8]} 61... Ka4 {[%clk 0:00:12.2]} 62. a8=Q#
{[%clk 0:00:21.7]} 1-0

[Event "*** Titled Tuesday Blitz"]
[Site "Chess.com"]
[Date "2021.03.02"]
[Round "3"]
[White "beto-betun"]
[Black "CrushingKings"]
[Result "0-1"]
[WhiteElo "2197"]
[BlackElo "2402"]
[TimeControl "180+1"]
[EndTime "10:29:26 PST"]
[Termination "CrushingKings won on time"]

1. d4 {[%clk 0:03:00.9]} 1... Nf6 {[%clk 0:02:37.6]} 2. Nf3 {[%clk 0:02:58.6]}
2... b6 {[%clk 0:02:29.2]} 3. g3 {[%clk 0:02:57.8]} 3... Bb7 {[%clk 0:02:29.3]}
4. Bg2 {[%clk 0:02:58.5]} 4... e6 {[%clk 0:02:25.6]} 5. O-O {[%clk 0:02:58.4]}
5... Be7 {[%clk 0:02:26]} 6. c4 {[%clk 0:02:58.7]} 6... O-O {[%clk 0:02:25.7]}
7. b3 {[%clk 0:02:59.2]} 7... d6 {[%clk 0:02:25]} 8. Bb2 {[%clk 0:02:59.6]} 8...
Nbd7 {[%clk 0:02:25.5]} 9. Nbd2 {[%clk 0:03:00.1]} 9... Ne4 {[%clk 0:02:25.7]}
10. Nxe4 {[%clk 0:02:58.1]} 10... Bxe4 {[%clk 0:02:26.6]} 11. Nd2 {[%clk
0:02:58.6]} 11... Bxg2 {[%clk 0:02:26]} 12. Kxg2 {[%clk 0:02:59.5]} 12... f5
{[%clk 0:02:25.6]} 13. e4 {[%clk 0:02:58.8]} 13... fxe4 {[%clk 0:02:25.1]} 14.
Nxe4 {[%clk 0:02:59]} 14... Nf6 {[%clk 0:02:25.1]} 15. Qe2 {[%clk 0:02:44.7]}
15... Qd7 {[%clk 0:02:11.4]} 16. f3 {[%clk 0:02:37.9]} 16... d5 {[%clk 0:02:09]}
17. Ng5 {[%clk 0:02:28.5]} 17... dxc4 {[%clk 0:01:49.7]} 18. bxc4 {[%clk
0:02:21.3]} 18... c5 {[%clk 0:01:42.2]} 19. Qxe6+ {[%clk 0:02:17.2]} 19... Qxe6
{[%clk 0:01:39.5]} 20. Nxe6 {[%clk 0:02:18.1]} 20... Rfe8 {[%clk 0:01:39.4]} 21.
d5 {[%clk 0:02:18.3]} 21... b5 {[%clk 0:01:38]} 22. Nc7 {[%clk 0:02:16.6]} 22...
bxc4 {[%clk 0:01:36]} 23. Nxa8 {[%clk 0:02:11.9]} 23... Rxa8 {[%clk 0:01:32.7]}
24. Rfe1 {[%clk 0:02:12.5]} 24... Nxd5 {[%clk 0:01:28.4]} 25. Re5 {[%clk
0:01:54.1]} 25... Bf6 {[%clk 0:01:11.3]} 26. Rxd5 {[%clk 0:01:45.8]} 26... Bxb2
{[%clk 0:01:10.5]} 27. Re1 {[%clk 0:01:32.2]} 27... Bd4 {[%clk 0:00:59.6]} 28.
Rd1 {[%clk 0:01:16.4]} 28... c3 {[%clk 0:00:53.8]} 29. Kf1 {[%clk 0:00:55.8]}
29... Rb8 {[%clk 0:00:47.2]} 30. Ke2 {[%clk 0:00:43.1]} 30... Rb2+ {[%clk
0:00:20]} 31. Kd3 {[%clk 0:00:42.1]} 31... Rxa2 {[%clk 0:00:20]} 32. Rd7 {[%clk
0:00:37.2]} 32... Rxh2 {[%clk 0:00:18.3]} 33. Rb1 {[%clk 0:00:30.5]} 33... h6
{[%clk 0:00:16.9]} 34. Rxa7 {[%clk 0:00:19.5]} 34... Rh3 {[%clk 0:00:16]} 35.
Ra8+ {[%clk 0:00:15.8]} 35... Kh7 {[%clk 0:00:16]} 36. Rf1 {[%clk 0:00:12.4]}
36... Rxg3 {[%clk 0:00:15.7]} 37. Ra2 {[%clk 0:00:10.2]} 37... h5 {[%clk
0:00:14.9]} 38. Ke4 {[%clk 0:00:09.9]} 38... h4 {[%clk 0:00:13.3]} 39. Rh2
{[%clk 0:00:09.5]} 39... g5 {[%clk 0:00:11.5]} 40. Kf5 {[%clk 0:00:07.9]} 40...
Kh6 {[%clk 0:00:09.7]} 41. Re1 {[%clk 0:00:07.4]} 41... Rxf3+ {[%clk 0:00:07.8]}
42. Kg4 {[%clk 0:00:06.9]} 42... Rf4+ {[%clk 0:00:08.1]} 43. Kh3 {[%clk
0:00:03.1]} 43... Kh5 {[%clk 0:00:09]} 44. Rg2 {[%clk 0:00:01.7]} 44... g4+
{[%clk 0:00:08.6]} 45. Kh2 {[%clk 0:00:02]} 45... g3+ {[%clk 0:00:08.2]} 46. Kh1
{[%clk 0:00:02.9]} 46... Rf2 {[%clk 0:00:08.5]} 47. Rxf2 {[%clk 0:00:01.9]}
47... gxf2 {[%clk 0:00:09.4]} 48. Rf1 {[%clk 0:00:02.6]} 48... c2 {[%clk
0:00:09.6]} 49. Kg2 {[%clk 0:00:03.5]} 49... Kg4 {[%clk 0:00:09.1]} 50. Rc1
{[%clk 0:00:01.6]} 50... h3+ {[%clk 0:00:09]} 51. Kf1 {[%clk 0:00:01.5]} 51...
h2 {[%clk 0:00:07.7]} 52. Kg2 {[%clk 0:00:02.1]} 52... Kf4 {[%clk 0:00:04.6]}
53. Kxh2 {[%clk 0:00:02.6]} 53... Ke3 {[%clk 0:00:05.1]} 54. Kh1 {[%clk
0:00:02.9]} 54... Ke2 {[%clk 0:00:05.1]} 55. Rxc2+ {[%clk 0:00:03]} 55... Ke1
{[%clk 0:00:05.5]} 56. Rd2 {[%clk 0:00:03.9]} 56... Kxd2 {[%clk 0:00:04.4]} 0-1

[Event "*** Titled Tuesday Blitz"]
[Site "Chess.com"]
[Date "2021.03.02"]
[Round "3"]
[White "c_r_e_e_p_e_r"]
[Black "Rodalquilar"]
[Result "0-1"]
[WhiteElo "2421"]
[BlackElo "2634"]
[TimeControl "180+1"]
[EndTime "10:29:28 PST"]
[Termination "Rodalquilar won by checkmate"]

1. d4 {[%clk 0:03:00.9]} 1... d5 {[%clk 0:02:42.9]} 2. c4 {[%clk 0:03:01]} 2...
e6 {[%clk 0:02:43]} 3. Nc3 {[%clk 0:03:00.8]} 3... a6 {[%clk 0:02:43.5]} 4. e4
{[%clk 0:02:52.9]} 4... dxe4 {[%clk 0:02:42.5]} 5. Nxe4 {[%clk 0:02:52.6]} 5...
Bb4+ {[%clk 0:02:43.2]} 6. Nc3 {[%clk 0:02:52.7]} 6... c5 {[%clk 0:02:42]} 7.
Nf3 {[%clk 0:02:37.7]} 7... Nf6 {[%clk 0:02:31.7]} 8. Be2 {[%clk 0:02:33]} 8...
Nc6 {[%clk 0:02:31.4]} 9. Be3 {[%clk 0:02:31.5]} 9... Ne4 {[%clk 0:01:49.8]} 10.
Rc1 {[%clk 0:02:12.7]} 10... Qa5 {[%clk 0:01:47.4]} 11. O-O {[%clk 0:02:07.3]}
11... Bxc3 {[%clk 0:01:46.8]} 12. bxc3 {[%clk 0:02:06.6]} 12... Nxc3 {[%clk
0:01:47.3]} 13. Qc2 {[%clk 0:01:49.7]} 13... Nxe2+ {[%clk 0:01:16.2]} 14. Qxe2
{[%clk 0:01:50.6]} 14... cxd4 {[%clk 0:01:16.7]} 15. Nxd4 {[%clk 0:01:50.7]}
15... Bd7 {[%clk 0:01:15.4]} 16. Nb3 {[%clk 0:01:39.9]} 16... Qe5 {[%clk
0:01:10.7]} 17. Nc5 {[%clk 0:01:34.1]} 17... Nd4 {[%clk 0:00:50.3]} 18. Qg4
{[%clk 0:01:07.9]} 18... Nf5 {[%clk 0:00:33.2]} 19. Nxd7 {[%clk 0:01:00]} 19...
Kxd7 {[%clk 0:00:34.1]} 20. Rfd1+ {[%clk 0:00:54.9]} 20... Ke7 {[%clk
0:00:17.7]} 21. Bf4 {[%clk 0:00:53.7]} 21... Qc5 {[%clk 0:00:10.9]} 22. Qf3
{[%clk 0:00:46.9]} 22... Qc6 {[%clk 0:00:10.5]} 23. Qa3+ {[%clk 0:00:43.9]}
23... Ke8 {[%clk 0:00:07.1]} 24. Qa5 {[%clk 0:00:26.4]} 24... f6 {[%clk
0:00:06.1]} 25. Rb1 {[%clk 0:00:22.7]} 25... Kf7 {[%clk 0:00:03.3]} 26. Qb4
{[%clk 0:00:20.5]} 26... Rad8 {[%clk 0:00:02.1]} 27. Qxb7+ {[%clk 0:00:19.6]}
27... Qxb7 {[%clk 0:00:03]} 28. Rxb7+ {[%clk 0:00:19.6]} 28... Kg6 {[%clk
0:00:03.9]} 29. Rdb1 {[%clk 0:00:17.8]} 29... Rd4 {[%clk 0:00:03.9]} 30. Bg3
{[%clk 0:00:14.2]} 30... Rxc4 {[%clk 0:00:04.3]} 31. Ra7 {[%clk 0:00:13.3]}
31... Rhc8 {[%clk 0:00:04.4]} 32. h3 {[%clk 0:00:10]} 32... Rc1+ {[%clk
0:00:04.5]} 33. Rxc1 {[%clk 0:00:10.5]} 33... Rxc1+ {[%clk 0:00:05.3]} 34. Kh2
{[%clk 0:00:11.2]} 34... Rc6 {[%clk 0:00:06.1]} 35. a4 {[%clk 0:00:10.6]} 35...
e5 {[%clk 0:00:06.4]} 36. f3 {[%clk 0:00:08.7]} 36... h5 {[%clk 0:00:04.5]} 37.
Bf2 {[%clk 0:00:08.7]} 37... Rc2 {[%clk 0:00:04]} 38. Bg1 {[%clk 0:00:08]} 38...
Nh4 {[%clk 0:00:03.9]} 39. Rxa6 {[%clk 0:00:04]} 39... Rxg2+ {[%clk 0:00:04.1]}
40. Kh1 {[%clk 0:00:04.6]} 40... Ra2 {[%clk 0:00:04.8]} 41. f4 {[%clk
0:00:02.3]} 41... Nf3 {[%clk 0:00:04.9]} 42. fxe5 {[%clk 0:00:02.1]} 42... Nxe5
{[%clk 0:00:05.8]} 43. Bh2 {[%clk 0:00:01.2]} 43... Nf3 {[%clk 0:00:06]} 44. Bg1
{[%clk 0:00:01.2]} 44... Ra1 {[%clk 0:00:05.6]} 45. Kg2 {[%clk 0:00:01.7]} 45...
Nxg1 {[%clk 0:00:06.1]} 46. a5 {[%clk 0:00:02.2]} 46... Ne2 {[%clk 0:00:06.5]}
47. Ra8 {[%clk 0:00:02.7]} 47... Nf4+ {[%clk 0:00:06.8]} 48. Kg3 {[%clk
0:00:03.2]} 48... Nd5 {[%clk 0:00:07]} 49. a6 {[%clk 0:00:02.8]} 49... Nb4
{[%clk 0:00:07.5]} 50. a7 {[%clk 0:00:03]} 50... Nc6 {[%clk 0:00:08.1]} 51. Rb8
{[%clk 0:00:03.5]} 51... Nxa7 {[%clk 0:00:07.8]} 52. Ra8 {[%clk 0:00:03.8]}
52... Ra3+ {[%clk 0:00:07.9]} 53. Kf4 {[%clk 0:00:04.1]} 53... Nb5 {[%clk
0:00:08.8]} 54. Rb8 {[%clk 0:00:03.7]} 54... Ra4+ {[%clk 0:00:08.8]} 55. Ke3
{[%clk 0:00:03.4]} 55... Nd6 {[%clk 0:00:09.1]} 56. Rb6 {[%clk 0:00:03.1]} 56...
Nf5+ {[%clk 0:00:10]} 57. Kf3 {[%clk 0:00:03.3]} 57... Ra3+ {[%clk 0:00:10.5]}
58. Kf4 {[%clk 0:00:03.4]} 58... Ra4+ {[%clk 0:00:09.8]} 59. Kf3 {[%clk
0:00:03.5]} 59... Nd4+ {[%clk 0:00:10.7]} 60. Kg3 {[%clk 0:00:03.7]} 60... h4+
{[%clk 0:00:09.2]} 61. Kxh4 {[%clk 0:00:03]} 61... Nf5# {[%clk 0:00:08.7]} 0-1

[Event "*** Titled Tuesday Blitz"]
[Site "Chess.com"]
[Date "2021.03.02"]
[Round "3"]
[White "AtabayevSaparmyrat"]
[Black "ViditYT"]
[Result "1-0"]
[WhiteElo "2739"]
[BlackElo "2967"]
[TimeControl "180+1"]
[EndTime "10:29:29 PST"]
[Termination "AtabayevSaparmyrat won by checkmate"]

1. e4 {[%clk 0:02:56]} 1... c5 {[%clk 0:02:55.8]} 2. Nf3 {[%clk 0:02:56.1]} 2...
d6 {[%clk 0:02:55.7]} 3. d4 {[%clk 0:02:56.6]} 3... cxd4 {[%clk 0:02:56.6]} 4.
Nxd4 {[%clk 0:02:57.4]} 4... Nf6 {[%clk 0:02:57.2]} 5. Nc3 {[%clk 0:02:57.7]}
5... Nc6 {[%clk 0:02:57.7]} 6. Bg5 {[%clk 0:02:57.8]} 6... e6 {[%clk 0:02:56.8]}
7. Qd2 {[%clk 0:02:51.7]} 7... a6 {[%clk 0:02:57.1]} 8. O-O-O {[%clk 0:02:51.3]}
8... Bd7 {[%clk 0:02:57]} 9. Nxc6 {[%clk 0:02:47]} 9... Bxc6 {[%clk 0:02:57]}
10. Bd3 {[%clk 0:02:47.4]} 10... Be7 {[%clk 0:02:56.8]} 11. Kb1 {[%clk
0:02:38.6]} 11... b5 {[%clk 0:02:56.8]} 12. f3 {[%clk 0:02:33.6]} 12... Bb7
{[%clk 0:02:40.8]} 13. g4 {[%clk 0:02:29.5]} 13... b4 {[%clk 0:02:17.4]} 14. Ne2
{[%clk 0:02:29.1]} 14... Nxe4 {[%clk 0:02:14.2]} 15. Bxe4 {[%clk 0:02:18.3]}
15... Bxg5 {[%clk 0:02:14.2]} 16. Qxb4 {[%clk 0:02:14.4]} 16... Bxe4 {[%clk
0:02:13.9]} 17. Qxe4 {[%clk 0:02:02.7]} 17... d5 {[%clk 0:02:12]} 18. Qa4+
{[%clk 0:01:59]} 18... Kf8 {[%clk 0:01:28.1]} 19. f4 {[%clk 0:01:54.8]} 19...
Be7 {[%clk 0:01:26.7]} 20. f5 {[%clk 0:01:54.4]} 20... Qd6 {[%clk 0:01:11.5]}
21. fxe6 {[%clk 0:01:49.6]} 21... fxe6 {[%clk 0:01:12.4]} 22. Rhf1+ {[%clk
0:01:45.4]} 22... Kg8 {[%clk 0:01:12.7]} 23. Nd4 {[%clk 0:01:42]} 23... Bf6
{[%clk 0:01:12.1]} 24. Rfe1 {[%clk 0:01:32.3]} 24... Bxd4 {[%clk 0:00:33.6]} 25.
Qxd4 {[%clk 0:01:33.2]} 25... Re8 {[%clk 0:00:32.9]} 26. c4 {[%clk 0:01:31.3]}
26... h6 {[%clk 0:00:25.8]} 27. cxd5 {[%clk 0:01:21.8]} 27... e5 {[%clk
0:00:26.3]} 28. Qe4 {[%clk 0:01:19.1]} 28... g6 {[%clk 0:00:26.3]} 29. Rc1
{[%clk 0:01:11.2]} 29... Rh7 {[%clk 0:00:19.3]} 30. Rc6 {[%clk 0:01:09.9]} 30...
Qd8 {[%clk 0:00:19.9]} 31. Rxg6+ {[%clk 0:01:07.1]} 31... Kh8 {[%clk 0:00:17.6]}
32. Re6 {[%clk 0:01:02.3]} 32... Rxe6 {[%clk 0:00:14.5]} 33. dxe6 {[%clk
0:01:03.2]} 33... Re7 {[%clk 0:00:13.7]} 34. Qxe5+ {[%clk 0:01:03.4]} 34... Kg8
{[%clk 0:00:14.2]} 35. a3 {[%clk 0:00:51.8]} 35... Qd2 {[%clk 0:00:13.9]} 36. h4
{[%clk 0:00:46.2]} 36... Qg2 {[%clk 0:00:08.9]} 37. g5 {[%clk 0:00:45.1]} 37...
h5 {[%clk 0:00:09]} 38. Qf6 {[%clk 0:00:40]} 38... Qb7 {[%clk 0:00:07.7]} 39.
Qg6+ {[%clk 0:00:38.5]} 39... Kh8 {[%clk 0:00:06.4]} 40. Qxh5+ {[%clk
0:00:38.7]} 40... Kg8 {[%clk 0:00:05.9]} 41. Qg6+ {[%clk 0:00:38.9]} 41... Kh8
{[%clk 0:00:06.6]} 42. Rf1 {[%clk 0:00:30.1]} 42... Qc8 {[%clk 0:00:02.7]} 43.
Qf6+ {[%clk 0:00:14.6]} 43... Rg7 {[%clk 0:00:03]} 44. Qf8+ {[%clk 0:00:13.5]}
44... Qxf8 {[%clk 0:00:03.4]} 45. Rxf8+ {[%clk 0:00:14.4]} 45... Kh7 {[%clk
0:00:04.3]} 46. Rf7 {[%clk 0:00:14.9]} 46... Kg6 {[%clk 0:00:04]} 47. Rxg7+
{[%clk 0:00:15.1]} 47... Kxg7 {[%clk 0:00:04.9]} 48. h5 {[%clk 0:00:15.7]} 48...
Kh7 {[%clk 0:00:05.2]} 49. h6 {[%clk 0:00:16.6]} 49... Kg6 {[%clk 0:00:05.4]}
50. e7 {[%clk 0:00:17.4]} 50... Kf7 {[%clk 0:00:06.1]} 51. h7 {[%clk 0:00:18.3]}
51... Kxe7 {[%clk 0:00:07]} 52. h8=Q {[%clk 0:00:19.1]} 52... Ke6 {[%clk
0:00:07.9]} 53. Qf6+ {[%clk 0:00:19.4]} 53... Kd5 {[%clk 0:00:08.8]} 54. g6
{[%clk 0:00:20.1]} 54... Ke4 {[%clk 0:00:09.7]} 55. g7 {[%clk 0:00:20.5]} 55...
a5 {[%clk 0:00:10.6]} 56. g8=Q {[%clk 0:00:20.9]} 56... a4 {[%clk 0:00:11.5]}
57. Qge6+ {[%clk 0:00:20.9]} 57... Kd3 {[%clk 0:00:11.9]} 58. Qc3# {[%clk
0:00:21]} 1-0

[Event "*** Titled Tuesday Blitz"]
[Site "Chess.com"]
[Date "2021.03.02"]
[Round "3"]
[White "ljuks68"]
[Black "Vandros57"]
[Result "1-0"]
[WhiteElo "2447"]
[BlackElo "2239"]
[TimeControl "180+1"]
[EndTime "10:29:30 PST"]
[Termination "ljuks68 won by checkmate"]

1. e4 {[%clk 0:02:58.4]} 1... c5 {[%clk 0:02:58.6]} 2. Nf3 {[%clk 0:02:58.4]}
2... Nc6 {[%clk 0:02:54.9]} 3. d4 {[%clk 0:02:58.7]} 3... cxd4 {[%clk
0:02:54.2]} 4. Nxd4 {[%clk 0:02:59.1]} 4... g6 {[%clk 0:02:52.9]} 5. c4 {[%clk
0:02:58]} 5... Nf6 {[%clk 0:02:48.7]} 6. Nc3 {[%clk 0:02:55.4]} 6... d6 {[%clk
0:02:47.6]} 7. Be2 {[%clk 0:02:55]} 7... Nxd4 {[%clk 0:02:44.4]} 8. Qxd4 {[%clk
0:02:54.2]} 8... Bg7 {[%clk 0:02:43.7]} 9. Be3 {[%clk 0:02:54.4]} 9... O-O
{[%clk 0:02:40.3]} 10. Qd2 {[%clk 0:02:54.6]} 10... a5 {[%clk 0:02:33.5]} 11.
Rc1 {[%clk 0:02:53.4]} 11... a4 {[%clk 0:02:28.7]} 12. f3 {[%clk 0:02:51.2]}
12... Qa5 {[%clk 0:02:15]} 13. Nd5 {[%clk 0:02:40.6]} 13... Qxd2+ {[%clk
0:02:12.2]} 14. Kxd2 {[%clk 0:02:40.5]} 14... Nxd5 {[%clk 0:02:10.3]} 15. cxd5
{[%clk 0:02:40.5]} 15... Bxb2 {[%clk 0:02:07]} 16. Rc7 {[%clk 0:02:40.1]} 16...
Bf6 {[%clk 0:02:01.5]} 17. Rhc1 {[%clk 0:02:32.3]} 17... Rd8 {[%clk 0:01:54.9]}
18. f4 {[%clk 0:02:27.6]} 18... h5 {[%clk 0:01:47.8]} 19. Bb6 {[%clk 0:02:21]}
19... Bg4 {[%clk 0:01:33.4]} 20. Bxg4 {[%clk 0:02:04.2]} 20... hxg4 {[%clk
0:01:32.3]} 21. Rxb7 {[%clk 0:02:00.6]} 21... Rdb8 {[%clk 0:01:31]} 22. Rcc7
{[%clk 0:01:59.5]} 22... Rxb7 {[%clk 0:01:29.9]} 23. Rxb7 {[%clk 0:01:59.4]}
23... a3 {[%clk 0:01:26]} 24. e5 {[%clk 0:01:51.1]} 24... dxe5 {[%clk
0:01:23.3]} 25. fxe5 {[%clk 0:01:51.2]} 25... Bxe5 {[%clk 0:01:20.1]} 26. Rxe7
{[%clk 0:01:50.9]} 26... Bxh2 {[%clk 0:01:17.3]} 27. Bc5 {[%clk 0:01:50.5]}
27... Rd8 {[%clk 0:01:13.7]} 28. Bxa3 {[%clk 0:01:39.7]} 28... Rxd5+ {[%clk
0:01:12.2]} 29. Ke2 {[%clk 0:01:39.4]} 29... Ra5 {[%clk 0:01:06.1]} 30. Bb2
{[%clk 0:01:33.3]} 30... f5 {[%clk 0:00:52.3]} 31. a3 {[%clk 0:01:26.5]} 31...
Bd6 {[%clk 0:00:48.4]} 32. Rg7+ {[%clk 0:01:12.8]} 32... Kf8 {[%clk 0:00:47.7]}
33. Rxg6 {[%clk 0:01:12.5]} 33... Ke7 {[%clk 0:00:42.8]} 34. Rg7+ {[%clk
0:00:57.2]} 34... Ke6 {[%clk 0:00:42]} 35. Rg6+ {[%clk 0:00:55.8]} 35... Kd5
{[%clk 0:00:41.5]} 36. Rf6 {[%clk 0:00:55.2]} 36... Kc6 {[%clk 0:00:24.9]} 37.
Bc3 {[%clk 0:00:50.2]} 37... Rd5 {[%clk 0:00:18.7]} 38. Bb4 {[%clk 0:00:43.8]}
38... f4 {[%clk 0:00:14.9]} 39. Bxd6 {[%clk 0:00:40.4]} 39... Rxd6 {[%clk
0:00:14.7]} 40. Rxf4 {[%clk 0:00:40.7]} 40... Re6+ {[%clk 0:00:09.8]} 41. Kf2
{[%clk 0:00:38.5]} 41... g3+ {[%clk 0:00:08.6]} 42. Kxg3 {[%clk 0:00:37.6]}
42... Rg6+ {[%clk 0:00:07.5]} 43. Kf3 {[%clk 0:00:34.6]} 43... Rd6 {[%clk
0:00:06.6]} 44. a4 {[%clk 0:00:32.3]} 44... Rd3+ {[%clk 0:00:05.6]} 45. Kf2
{[%clk 0:00:25.9]} 45... Ra3 {[%clk 0:00:05.2]} 46. Kg1 {[%clk 0:00:23.5]} 46...
Kd6 {[%clk 0:00:04.6]} 47. Kh2 {[%clk 0:00:23.4]} 47... Ke6 {[%clk 0:00:04]} 48.
g3 {[%clk 0:00:23.8]} 48... Ke5 {[%clk 0:00:03.5]} 49. Kh3 {[%clk 0:00:22.5]}
49... Ke6 {[%clk 0:00:02.1]} 50. Kg4 {[%clk 0:00:22.5]} 50... Ra1 {[%clk
0:00:01.4]} 51. Rb4 {[%clk 0:00:22]} 51... Rh1 {[%clk 0:00:02.3]} 52. a5 {[%clk
0:00:20.4]} 52... Ra1 {[%clk 0:00:01.5]} 53. Rb5 {[%clk 0:00:19.6]} 53... Ra4+
{[%clk 0:00:01.5]} 54. Kg5 {[%clk 0:00:19]} 54... Kf7 {[%clk 0:00:01.9]} 55. g4
{[%clk 0:00:18.9]} 55... Ra3 {[%clk 0:00:02.1]} 56. Kf5 {[%clk 0:00:16.6]} 56...
Ra2 {[%clk 0:00:02.3]} 57. Rb7+ {[%clk 0:00:14.6]} 57... Kg8 {[%clk 0:00:01.9]}
58. Rb5 {[%clk 0:00:14.9]} 58... Rf2+ {[%clk 0:00:01.8]} 59. Kg6 {[%clk
0:00:14.3]} 59... Rg2 {[%clk 0:00:01.8]} 60. Rb8# {[%clk 0:00:13.4]} 1-0